[Event "FRA-ch Teams Top 16-B 2022"]
[Site "Chartres"]
[Date "2022.06.12"]
[Round "4.26"]
[White "Marcelin, Cyril"]
[Black "Fantinel, Thibault"]
[Result "1/2-1/2"]
[ECO "A38"]
[WhiteElo "2440"]
[BlackElo "2388"]
[Annotator "TA"]
[PlyCount "35"]
[EventDate "2022.06.09"]
[EventType "team-tourn"]
[EventCountry "FRA"]
[SourceTitle "playchess.com"]
[Source "ChessBase"]
[SourceQuality "1"]
[TimeControl "40/5400+30:1800+30"]

{[%evp 17,35,2,25,11,19,12,26,23,45,27,63,43,46,51,51,44,44,38,43,41]} 1. Nf3 {[%emt 0:00:04]} Nf6 {[%emt 0:00:28]} 2. c4 {[%emt 0:00:12]} g6 {[%emt 0:00:58]} 3. b3 {[%emt 0:00:20]} Bg7 {[%emt 0:00:20]} 4. Bb2 {[%emt 0:00:06]} O-O {[%emt 0:00:28]} 5. g3 {[%emt 0:00:11]} c5 {[%emt 0:00:17]} 6. Bg2 {[%emt 0:00:45]} d6 {[%emt 0:00:08]} 7. O-O {[%emt 0:03:25]} e5 {[%emt 0:00:14]} 8. Nc3 {[%emt 0:00:40]} Nc6 {[%emt 0:00:25]} 9. d3 {[%emt 0:00:10]} h6 {[%emt 0:03:58]} 10. Ne1 {[%emt 0:02:45] A38: Symmetrical English vs ...g6: 4 Bg2 Bg7 5 Nf3 Nf6.} Be6 {[%emt 0:00:51]} 11. Nd5 {[%emt 0:00:32]} Qd7 {[%emt 0:01:02]} 12. Qd2 {[%emt 0:00:15] White has an edge.} Kh7 {[%emt 0:08:14]} 13. f4 {[%emt 0:07:44] Hoping for fxe5.} Bh3 {[%emt 0:03:56]} 14. e4 {[%emt 0:14:52][%cal Of4f5] [#] White is slightly better.} Nxd5 $146 {[%emt 0:13:13]} ({Predecessor:} 14... Bxg2 15. Nxg2 Nxd5 16. cxd5 Nd4 17. f5 Bf6 18. h4 g5 19. Kf2 gxh4 20. gxh4 Bh8 21. Qd1 Rg8 22. Qh5 Bg7 23. Ne3 Bf8 24. Ng4 Qd8 {½-½ (24) Sanal,V (2477)-Rajkovic,M (2275) Khanty-Mansiysk 2016}) 15. cxd5 {[%emt 0:00:48]} Nd4 {[%emt 0:00:26]} 16. f5 {[%emt 0:23:02]} Bxg2 {[%emt 0:00:23]} 17. Qxg2 {[%emt 0:03:43]} Bf6 {[%emt 0:08:15]} 18. Nf3 {[%emt 0:05:23] Weighted Error Value: White=0.06 (flawless) /Black=0.13 (very precise)} 1/2-1/2

[Event "FRA-ch Teams Top 16-B 2022"]
[Site "Chartres"]
[Date "2022.06.12"]
[Round "4.27"]
[White "Kirk, Ezra"]
[Black "Kulaots, Kaido"]
[Result "0-1"]
[ECO "A47"]
[WhiteElo "2446"]
[BlackElo "2537"]
[Annotator "TA"]
[PlyCount "82"]
[EventDate "2022.06.09"]
[EventType "team-tourn"]
[EventCountry "FRA"]
[SourceTitle "playchess.com"]
[Source "ChessBase"]
[SourceQuality "1"]
[TimeControl "40/5400+30:1800+30"]

{[%evp 9,82,5,8,7,5,5,18,14,16,12,22,9,12,4,8,8,14,4,0,0,0,0,1,0,0,0,0,0,0,0,0,0,0,0,0,0,10,-10,-6,-10,-18,-9,-12,-4,-4,-6,-10,-4,0,0,0,0,0,0,4,4,4,4,4,4,14,0,4,-1380,-1380,-29987,-29988,-29988,-512,-696,0,-29988,-29989,-29989,-29990]} 1. d4 {[%emt 0:00:04]} Nf6 {[%emt 0:00:11]} 2. Nf3 {[%emt 0:00:13]} e6 {[%emt 0:00:20]} 3. Bf4 {[%emt 0:00:12]} b6 {[%emt 0:04:35]} 4. e3 {[%emt 0:02:14]} Be7 {[%emt 0:00:19]} 5. h3 {[%emt 0:00:39]} O-O {[%emt 0:01:00]} 6. Nbd2 {[%emt 0:10:15] A47: 1 d4 Nf6 2 Nf3 b6: Torre, London and Colle Systems.} c5 {[%emt 0:02:53]} 7. c3 {[%emt 0:03:13]} Ba6 {[%emt 0:12:49]} 8. Bxa6 {[%emt 0:04:42] The position is equal.} Nxa6 {[%emt 0:00:53]} 9. Qe2 {[%emt 0:00:20]} Nb8 {[%emt 0:02:33]} 10. O-O {[%emt 0:05:19]} Nc6 {[%emt 0:00:44] [#]} 11. dxc5 $146 {[%emt 0:08:27]} ({Predecessor:} 11. Rad1 cxd4 12. exd4 d6 13. Rfe1 Qd7 14. Bg5 Rac8 15. Bxf6 Bxf6 16. Ne4 {½-½ (25) Dudas,J (2205)-Martiska,P (2245) Slovakia 2016}) 11... bxc5 {[%emt 0:01:49]} 12. e4 {[%emt 0:01:21]} d5 {[%emt 0:02:15]} 13. exd5 {[%emt 0:19:23]} exd5 {[%emt 0:00:16]} 14. Qb5 {[%emt 0:00:15]} Qb6 {[%emt 0:24:10]} 15. a4 {[%emt 0:00:06]} Rfc8 {[%emt 0:00:18]} 16. Rfe1 {[%emt 0:01:32]} Qd8 {[%emt 0:01:24]} 17. Qd3 {[%emt 0:08:02]} h6 {[%emt 0:04:12]} 18. Rad1 {[%emt 0:07:31]} Bd6 {[%emt 0:02:56]} 19. Bxd6 {[%emt 0:04:41]} Qxd6 {[%emt 0:00:48]} 20. Ne4 {[%emt 0:02:54]} Nxe4 {[%emt 0:00:24]} 21. Rxe4 {[%emt 0:00:05]} Rd8 {[%emt 0:06:39]} 22. Re2 {[%emt 0:06:22]} Rab8 {[%emt 0:01:13]} 23. Qf5 {[%emt 0:05:08]} g6 {[%emt 0:03:21]} 24. Qg4 {[%emt 0:00:42]} Qf6 {[%emt 0:04:30]} 25. h4 {[%emt 0:02:35]} d4 {[%emt 0:02:55]} 26. h5 {[%emt 0:02:02]} g5 {[%emt 0:01:35]} 27. cxd4 {[%emt 0:03:09]} Nxd4 {[%emt 0:05:41]} 28. Nxd4 {[%emt 0:00:26][%cal Oe2d2]} cxd4 {[%emt 0:00:06]} 29. Rd3 {[%emt 0:00:38]} Rbc8 {[%emt 0:05:23]} 30. g3 {[%emt 0:01:04]} Rc1+ {[%emt 0:00:43]} 31. Kg2 {[%emt 0:00:34]} Qc6+ {[%emt 0:00:56]} 32. Qf3 {[%emt 0:00:46]} Qxa4 {[%emt 0:03:33]} 33. Re7 {[%emt 0:00:05]} Rf8 {[%emt 0:00:14]} 34. Qe4 {[%emt 0:00:27][%cal Oe7e6] [#] And now Re6! would win.} Qc2 {[%emt 0:04:50]} 35. Qxd4 {[%emt 0:01:57]} Rb1 {[%emt 0:00:30] Hoping for ...Qc1. Dancing on a razor blade.} 36. Rxa7 $2 {[%emt 0:00:33][%mdl 8192]} (36. Qc3 $11 Qxb2 37. Qxb2 Rxb2 38. Rxa7) 36... Qc1 $19 {[%emt 0:00:17][%csl Gb1][%cal Rc1h1]} 37. Kf3 {[%emt 0:00:31]} Qh1+ {[%emt 0:00:27]} 38. Ke2 {[%emt 0:00:16]} Qe1+ {[%emt 0:00:44]} (38... Re8+ $142 39. Re3 Re1+ 40. Kd2 Rd1+ 41. Kc3 Rc8+ 42. Qc4 Rc1+ 43. Kb3 Qd1+ 44. Ka3 R8xc4 45. Ra8+ Kg7 46. Rg8+ Kxg8 47. Re8+ Kg7 48. Rg8+ Kxg8 49. b4 R4c3+ 50. Kb2 Qe2#) 39. Kf3 {[%emt 0:00:05]} Qh1+ {[%emt 0:00:05] [#]} (39... Qf1 $19 40. Ra5 Qh3) 40. Ke2 {[%emt 0:00:03]} Re8+ {[%emt 0:00:33]} 41. Re3 {[%emt 0:30:25]} Re1+ {[%emt 0:02:47] Weighted Error Value: White=0.33/Black=0.42} 0-1

[Event "FRA-ch Teams Top 16-B 2022"]
[Site "Chartres"]
[Date "2022.06.12"]
[Round "4.28"]
[White "Godart, Francois"]
[Black "Favarel, Julien"]
[Result "0-1"]
[ECO "E64"]
[WhiteElo "2399"]
[BlackElo "2312"]
[Annotator "TA"]
[PlyCount "61"]
[EventDate "2022.06.09"]
[EventType "team-tourn"]
[EventCountry "FRA"]
[SourceTitle "playchess.com"]
[Source "ChessBase"]
[SourceQuality "1"]
[TimeControl "40/5400+30:1800+30"]

{[%evp 13,61,9,26,19,19,0,0,0,0,0,0,-2,-12,-33,-26,-98,-102,-110,-83,-99,-103,-106,-99,-107,-69,-108,-90,-102,-104,-131,-141,-123,-102,-220,-201,-194,-139,-145,-142,-132,-132,-137,-143,-141,-143,-1118,-1111,-1106,-1084,-29999]} 1. d4 {[%emt 0:00:06]} Nf6 {[%emt 0:00:07]} 2. c4 {[%emt 0:00:12]} g6 {[%emt 0:00:12]} 3. g3 {[%emt 0:00:33]} Bg7 {[%emt 0:00:05]} 4. Bg2 {[%emt 0:00:05]} O-O {[%emt 0:00:17]} 5. Nc3 {[%emt 0:00:47]} d6 {[%emt 0:00:07]} 6. Nf3 {[%emt 0:00:09]} c5 {[%emt 0:01:01]} 7. d5 {[%emt 0:01:08]} e6 {[%emt 0:01:15]} 8. O-O {[%emt 0:00:15] E64: King's Indian: Fianchetto: 6...c5 7 d5.} Re8 {[%emt 0:00:08]} 9. dxe6 {[%emt 0:10:36] 9.Re1 is setting a new trend.} Bxe6 {[%emt 0:02:57]} 10. Ng5 {[%emt 0:09:29] The position is equal.} Bxc4 {[%emt 0:00:47] White must now prevent ...d5.} 11. Bxb7 {[%emt 0:04:53]} Nbd7 {[%emt 0:00:30] [#]} 12. b3 $146 {[%emt 0:16:54]} (12. Bxa8 Qxa8 13. Qxd6 h6 $14) ({Predecessor:} 12. Bxa8 Qxa8 13. Qxd6 h6 14. Nf3 Bxe2 15. Nxe2 Qxf3 16. Nc3 Qb7 17. Qd1 Ne5 18. f4 Nc4 19. Qf3 Qd7 20. Rd1 Qf5 {½-½ (31) Korley,K (2400)-Idani,P (2638) Reykjavik 2022}) 12... Rb8 {[%emt 0:02:13][%cal Ba8b8,Bb8b7,Bb7e7][%mdl 32]} 13. bxc4 {[%emt 0:02:52] Strongly threatening Rb1.} Rxb7 {[%emt 0:00:16]} 14. Bf4 {[%emt 0:03:37]} (14. Qxd6 $11 {keeps the balance.} Qc8 15. Rb1) 14... h6 $17 {[%emt 0:08:06]} 15. Nf3 {[%emt 0:05:05]} Nh5 $36 {[%emt 0:07:43][%mdl 2048] White is under strong pressure.} 16. Bd2 {[%emt 0:08:51]} Nb6 {[%emt 1:12:46]} 17. Rb1 {[%emt 0:02:47]} Rbe7 {[%emt 0:00:00]} 18. Qb3 {[%emt 0:01:07]} Nf6 {[%emt 0:00:00]} 19. Rfd1 {[%emt 0:08:50]} Ne4 {[%emt 0:00:00]} 20. e3 {[%emt 0:00:49]} Qa8 {[%emt 0:00:00]} 21. Nd5 {[%emt 0:01:40]} Nxd5 {[%emt 0:00:00]} 22. cxd5 {[%emt 0:00:04]} Qc8 {[%emt 0:00:00] ...c4 is the strong threat.} 23. Qc4 {[%emt 0:04:51]} (23. Be1 $17) 23... Qg4 $19 {[%emt 0:00:00]} 24. Qe2 {[%emt 0:02:54]} Ng5 {[%emt 0:00:00]} ({Better is} 24... Bc3 $19 25. Bc1 Ng5) 25. Kg2 $17 {[%emt 0:14:26]} Nxf3 {[%emt 0:00:00] 0x0.002af322287adp-1022s more active pieces.} 26. Qxf3 {[%emt 0:00:00] [#]} Qa4 {[%emt 0:00:00]} 27. Qf4 {[%emt 0:00:00] [#]} Qa6 {[%emt 0:05:30]} (27... Qxa2 28. Qxd6 Re5 29. Be1 $14 (29. Qxc5 $2 Rxd5 30. Qc6 Red8 $19)) 28. Be1 {[%emt 0:00:00]} Re4 {[%emt 0:00:00]} ({But not} 28... Qxa2 29. Qxd6 Rxe3 30. Qxc5 $16) 29. Rb8 $2 {[%emt 0:00:00][%mdl 8192]} (29. Qf3 $17) 29... Rxf4 $19 {[%emt 0:00:00]} (29... Rxb8 $2 {is the wrong capture.} 30. Qxe4 Qxa2 31. Rc1 $19) 30. Rxe8+ {[%emt 0:00:00]} Kh7 {[%emt 0:00:00][%cal Oa6a4]} 31. Kh1 {[%emt 0:03:00] Weighted Error Value: White=0.57/Black=0.04 (flawless)} 0-1

[Event "FRA-ch Teams Top 16-B 2022"]
[Site "Chartres"]
[Date "2022.06.12"]
[Round "4.29"]
[White "Ternault, Mathieu"]
[Black "Chabanon, Jean-Luc"]
[Result "1/2-1/2"]
[ECO "E62"]
[WhiteElo "2367"]
[BlackElo "2432"]
[Annotator "TA"]
[PlyCount "107"]
[EventDate "2022.06.09"]
[EventType "team-tourn"]
[EventCountry "FRA"]
[SourceTitle "playchess.com"]
[Source "ChessBase"]
[SourceQuality "1"]
[TimeControl "40/5400+30:1800+30"]

{[%evp 17,107,23,53,14,14,18,39,33,33,18,66,37,43,13,7,12,7,8,7,7,30,28,36,0,0,0,1,0,41,42,42,42,69,41,41,41,50,41,69,69,76,41,69,69,69,69,69,69,69,0,69,69,69,61,61,56,56,56,62,61,62,62,62,61,62,58,61,0,0,0,61,61,62,62,62,62,62,62,62,62,62,62,62,62,81,81,81,81,81,81,81,81]} 1. Nf3 {[%emt 0:00:11]} Nf6 {[%emt 0:00:11]} 2. c4 {[%emt 0:00:41]} g6 {[%emt 0:00:45]} 3. g3 {[%emt 0:05:19]} Bg7 {[%emt 0:00:54]} 4. Bg2 {[%emt 0:00:36]} O-O {[%emt 0:00:18]} 5. d4 {[%emt 0:00:36]} d6 {[%emt 0:02:47]} 6. Nc3 {[%emt 0:08:09]} Nc6 {[%emt 0:00:49]} 7. O-O {[%emt 0:05:19]} e5 {[%emt 0:04:03]} 8. d5 {[%emt 0:05:58]} Ne7 {[%emt 0:00:41] 8...Nb8 is more fashionable.} 9. e4 {[%emt 0:00:04]} Nd7 {[%emt 0:00:58]} 10. Kh1 {[%emt 0:03:58] [#] E62: King's Indian: Fianchetto: 6...c6 and Panno Variation (6...Nc6) without ...a6.} a5 $146 {[%emt 0:07:45]} ({Predecessor:} 10... h6 11. Ne1 f5 12. Nd3 Nf6 13. f4 exf4 14. Nxf4 g5 15. Ne6 Bxe6 16. dxe6 Nxe4 17. Nxe4 fxe4 18. Bxe4 {1-0 (27) Berkes,F (2685)-Pacher,M (2442) Istanbul 2012}) 11. Be3 {[%emt 0:03:27]} h6 {[%emt 0:10:22]} 12. Nh4 {[%emt 0:01:37] White is slightly better.} (12. Qd2 $5 {[%cal Re3h6]}) 12... Nc5 {[%emt 0:20:14]} 13. Qc2 {[%emt 0:06:08]} f5 {[%emt 0:04:34]} (13... b6 $11) 14. exf5 {[%emt 0:02:27] White is more active.} (14. Bxc5 $5 dxc5 15. exf5 gxf5 16. Nb5 $11) 14... g5 {[%emt 0:02:43]} 15. Ng6 {[%emt 0:15:09]} Bxf5 {[%emt 0:03:05]} 16. Nxe7+ {[%emt 0:00:04]} Qxe7 {[%emt 0:00:05]} 17. Ne4 {[%emt 0:08:03]} Nxe4 {[%emt 0:03:02]} 18. Bxe4 {[%emt 0:00:08]} Qd7 {[%emt 0:03:48]} 19. f3 {[%emt 0:05:26]} b6 {[%emt 0:16:10]} 20. a4 {[%emt 0:03:48]} Bxe4 {[%emt 0:02:48]} 21. Qxe4 {[%emt 0:02:00]} Qf5 {[%emt 0:00:15]} 22. g4 {[%emt 0:01:36]} (22. Kg2 {is more complex.} Rf7 23. Rh1 Raf8 24. Raf1) 22... Qxe4 {[%emt 0:00:49]} 23. fxe4 {[%emt 0:00:03]} Rxf1+ {[%emt 0:00:48]} 24. Rxf1 $11 {[%emt 0:00:09][%mdl 4096] Endgame KRB-KRB} Rf8 {[%emt 0:00:46]} 25. Re1 {[%emt 0:02:54]} Bf6 {[%emt 0:00:33]} 26. Kg2 {[%emt 0:00:14]} Be7 {[%emt 0:00:08]} 27. Bd2 {[%emt 0:01:07]} Kf7 {[%emt 0:01:51]} 28. Rf1+ {[%emt 0:04:18]} Ke8 {[%emt 0:00:53]} 29. Ra1 {[%emt 0:01:58]} Kd7 {[%emt 0:00:31]} 30. Ra3 {[%emt 0:00:11]} Rf6 {[%emt 0:01:02]} 31. Rh3 {[%emt 0:00:53]} Bf8 {[%emt 0:00:15]} 32. Rh5 {[%emt 0:00:34]} Rg6 {[%emt 0:01:18]} 33. Rh3 {[%emt 0:04:14]} Rf6 {[%emt 0:01:46]} 34. Rb3 {[%emt 0:02:40]} Be7 {[%emt 0:00:23]} 35. Rb5 {[%emt 0:01:01]} Rf8 {[%emt 0:00:50]} 36. Be3 {[%emt 0:01:15]} Rh8 {[%emt 0:00:50]} 37. Bf2 {[%emt 0:01:08]} Rf8 {[%emt 0:00:54] [#] Threatens to win with ...Rf4.} 38. Bg3 {[%emt 0:00:07] Prevents Rf4.} Re8 {[%emt 0:00:42]} 39. Rb3 {[%emt 0:01:46]} Rf8 {[%emt 0:00:08]} 40. h3 {[%emt 0:00:57]} Bd8 {[%emt 0:01:08]} 41. Bh2 {[%emt 0:33:44]} Be7 {[%emt 0:30:23]} 42. Rb5 {[%emt 0:00:00]} Bd8 {[%emt 0:00:00]} 43. Rb3 {[%emt 0:00:00]} Be7 {[%emt 0:00:00]} 44. Rf3 {[%emt 0:00:00]} Rxf3 {[%emt 0:00:00]} 45. Kxf3 $14 {[%emt 0:00:00] KB-KB} Kc8 {[%emt 0:00:00]} 46. Bg3 {[%emt 0:00:00][%cal Oc4c5]} Kb7 {[%emt 0:00:00]} 47. Ke2 {[%emt 0:00:00]} Ka6 {[%emt 0:00:00]} 48. Kd3 {[%emt 0:00:00]} Bd8 {[%emt 0:00:00]} 49. Be1 {[%emt 0:00:00]} Kb7 {[%emt 0:00:00]} 50. Bd2 {[%emt 0:00:00]} c5 {[%emt 0:00:00]} 51. dxc6+ {[%emt 0:00:00] White is better.} Kxc6 {[%emt 0:00:00]} 52. Be3 {[%emt 0:00:00]} Bf6 {[%emt 0:00:00]} 53. Kc3 {[%emt 0:00:00]} Be7 {[%emt 0:00:00]} 54. b3 {[%emt 0:00:00] Weighted Error Value: White=0.09 (flawless) /Black=0.07 (flawless)} 1/2-1/2

[Event "FRA-ch Teams Top 16-B 2022"]
[Site "Chartres"]
[Date "2022.06.12"]
[Round "4.30"]
[White "Housieaux, David"]
[Black "Boukhris-Ferre, Yacine"]
[Result "1-0"]
[ECO "E92"]
[WhiteElo "2412"]
[BlackElo "2183"]
[Annotator "TA"]
[PlyCount "65"]
[EventDate "2022.06.09"]
[EventType "team-tourn"]
[EventCountry "FRA"]
[SourceTitle "playchess.com"]
[Source "ChessBase"]
[SourceQuality "1"]
[TimeControl "40/5400+30:1800+30"]

{[%evp 20,65,24,25,46,43,66,59,72,56,52,60,81,63,70,64,113,72,87,80,94,10,157,77,114,110,116,115,331,347,365,365,347,353,341,338,430,308,389,340,423,430,596,620,609,603,598,595]} 1. Nf3 {[%emt 0:00:02]} Nf6 {[%emt 0:00:07]} 2. c4 {[%emt 0:00:14]} g6 {[%emt 0:00:09]} 3. Nc3 {[%emt 0:00:33]} Bg7 {[%emt 0:00:04]} 4. e4 {[%emt 0:00:10]} d6 {[%emt 0:00:07]} 5. d4 {[%emt 0:00:06]} O-O {[%emt 0:00:04]} 6. Be2 {[%emt 0:00:28]} e5 {[%emt 0:00:16]} 7. d5 {[%emt 0:01:11]} a5 {[%emt 0:01:02]} 8. Bg5 {[%emt 0:00:25]} h6 {[%emt 0:00:55]} 9. Bh4 {[%emt 0:02:12]} Na6 {[%emt 0:05:52]} 10. Nd2 {[%emt 0:00:52]} Qe8 {[%emt 0:06:03]} 11. a3 {[%emt 0:15:52]} Nh7 {[%emt 0:01:49] E92: King's Indian: Classical: 6 Be2 e5: 7 dxe5, 7 Be3 and Petrosian System without 7...Nbd7.} 12. b4 {[%emt 0:01:57]} f5 {[%emt 0:01:15] White must now prevent ...g5.} 13. f3 $1 {[%emt 0:04:49]} Bd7 {[%emt 0:07:11] White is slightly better.} 14. Rb1 {[%emt 0:03:18]} axb4 {[%emt 0:00:55]} 15. axb4 {[%emt 0:00:06] [#]} c5 $146 {[%emt 0:11:03]} ({Predecessor:} 15... Nf6 16. Bf2 b6 17. O-O Nh5 18. g3 fxe4 19. Ndxe4 Nf6 20. Qb3 Nxe4 21. Nxe4 Nb8 {0-1 (35) Parvanova,D (1983)-Bednikova,S (2043) Sunny Beach 2013}) 16. dxc6 {[%emt 0:03:33]} bxc6 {[%emt 0:00:33]} 17. O-O {[%emt 0:03:36]} Nc7 {[%emt 0:07:19] [#]} (17... Nf6 $14) 18. Nb3 $1 $16 {[%emt 0:06:17]} Ne6 {[%emt 0:02:53]} 19. Qxd6 {[%emt 0:03:45]} Nd4 {[%emt 0:00:33]} 20. b5 {[%emt 0:27:16] White is more active.} ({Better is} 20. Nc5 $16) 20... Ng5 {[%emt 0:12:47]} (20... g5 $11 {keeps the balance.} 21. Bf2 Rf6) 21. bxc6 {[%emt 0:09:26]} (21. b6 $142) 21... Bxc6 {[%emt 0:00:22]} 22. Nxd4 {[%emt 0:00:08]} exd4 {[%emt 0:00:48]} 23. Nd5 $36 {[%emt 0:00:06][%mdl 2048] White has strong initiative.} Kh7 $2 {[%emt 0:15:49] This move loses the game for Black.} (23... Bxd5 $16 {keeps fighting.} 24. Qxd5+ Kh8) 24. Nc7 $1 $18 {[%emt 0:02:44][%csl LRa8,LRe8]} Qd8 {[%emt 0:05:43]} 25. Qxc6 {[%emt 0:01:41]} Rc8 {[%emt 0:01:56]} 26. Rb7 {[%emt 0:00:43]} d3 {[%emt 0:00:50]} 27. Bd1 {[%emt 0:00:49]} Rf7 {[%emt 0:03:39][%cal Rc8c7] [#]} 28. exf5 $1 {[%emt 0:01:30]} Rfxc7 {[%emt 0:02:06]} (28... gxf5 29. Ne6) 29. fxg6+ {[%emt 0:00:38]} Kg8 {[%emt 0:01:16]} 30. Rxc7 {[%emt 0:00:23] White is clearly winning.} Rxc7 {[%emt 0:00:01]} 31. Qd5+ {[%emt 0:00:20]} Qxd5 {[%emt 0:00:07]} 32. cxd5 {[%emt 0:00:01]} Rc4 {[%emt 0:01:34]} 33. Bf2 {[%emt 0:00:48] Weighted Error Value: White=0.23 (precise) /Black=0.50} 1-0

[Event "FRA-ch Teams Top 16-B 2022"]
[Site "Chartres"]
[Date "2022.06.12"]
[Round "4.31"]
[White "Roubert, Emile"]
[Black "Brochet, Philippe"]
[Result "0-1"]
[ECO "B92"]
[WhiteElo "2027"]
[BlackElo "2390"]
[Annotator "TA"]
[PlyCount "92"]
[EventDate "2022.06.09"]
[EventType "team-tourn"]
[EventCountry "FRA"]
[SourceTitle "playchess.com"]
[Source "ChessBase"]
[SourceQuality "1"]
[TimeControl "40/5400+30:1800+30"]

{[%evp 13,92,16,41,41,43,0,9,18,7,0,0,-7,0,-33,22,21,37,0,23,-17,31,21,24,7,19,18,6,0,19,0,8,10,10,-13,0,-11,9,23,10,5,97,40,44,23,66,43,43,61,38,0,0,-16,-52,-29,0,0,0,0,0,0,0,0,75,77,67,66,126,134,127,132,109,108,115,104,131,-30,-30,-30,-30,-29997,-29998]} 1. e4 {[%emt 0:00:04]} c5 {[%emt 0:00:01]} 2. Nf3 {[%emt 0:00:09]} d6 {[%emt 0:00:06]} 3. d4 {[%emt 0:00:19]} cxd4 {[%emt 0:00:06]} 4. Nxd4 {[%emt 0:00:04]} Nf6 {[%emt 0:00:02]} 5. Nc3 {[%emt 0:00:10]} a6 {[%emt 0:00:03]} 6. Be2 {[%emt 0:00:18]} Nbd7 {[%emt 0:00:03]} 7. O-O {[%emt 0:08:37] 7.0-0 has become a bit dusty these days.} g6 {[%emt 0:00:49]} 8. Re1 {[%emt 0:04:04] B92: Sicilian Najdorf: 6 Be2.} Bg7 {[%emt 0:02:04]} 9. Bf1 {[%emt 0:06:15]} O-O {[%emt 0:06:34]} 10. Bg5 {[%emt 0:03:33] The position is equal.} Re8 {[%emt 0:14:54]} 11. a4 {[%emt 0:09:44] Inhibits b5.} b6 {[%emt 0:03:05]} 12. Nd5 {[%emt 0:16:47] Threatens to win with Nc6.} Bb7 {[%emt 0:01:25][%cal Of6e4] Against Nc6} 13. c4 {[%emt 0:00:40]} h6 {[%emt 0:02:53]} ({Black should try} 13... Nc5 $15) 14. Bh4 $11 {[%emt 0:01:20]} e6 {[%emt 0:00:51]} 15. Nc3 {[%emt 0:01:50] [#]} Qc7 $146 {[%emt 0:04:28]} ({Predecessor:} 15... Rc8 16. Rc1 Ne5 17. b3 Qc7 18. f3 Qb8 19. Bf2 Red8 20. Qe2 Ned7 21. Red1 Qa8 {1-0 (48) Zontakh,A (2530)-Anka,E (2464) Zalakaros 1999}) 16. Rc1 {[%emt 0:02:49]} Rad8 {[%emt 0:06:16]} (16... Qc5 $11) 17. f3 $14 {[%emt 0:04:33]} Qb8 {[%emt 0:01:26]} 18. Nc2 {[%emt 0:03:08]} Ne5 {[%emt 0:07:22]} 19. Ne3 {[%emt 0:03:32]} g5 {[%emt 0:03:04]} 20. Bf2 {[%emt 0:00:51]} Bc6 {[%emt 0:01:22]} 21. Qb3 {[%emt 0:02:27]} Qb7 {[%emt 0:04:17]} 22. Red1 {[%emt 0:01:26]} g4 {[%emt 0:05:53]} 23. Be2 {[%emt 0:02:57][%cal Re3g4]} gxf3 {[%emt 0:02:17]} 24. gxf3 {[%emt 0:00:40]} Kh8 {[%emt 0:06:31]} 25. Ng2 {[%emt 0:04:49]} Rg8 {[%emt 0:00:56]} 26. Qxb6 {[%emt 0:01:18]} Qe7 {[%emt 0:00:54]} (26... Qxb6 $11 {keeps the balance.} 27. Bxb6 Rb8) 27. Qe3 {[%emt 0:02:31]} ({Don't do} 27. Qxa6 Ra8 28. Qb6 Rgb8 $14) (27. Rc2 $16) 27... Rb8 {[%emt 0:02:42]} 28. Rc2 {[%emt 0:03:04]} Rb4 {[%emt 0:00:56]} 29. Qd2 {[%emt 0:02:43]} Bf8 {[%emt 0:04:16]} 30. Kh1 {[%emt 0:04:03]} Qb7 {[%emt 0:03:10]} 31. Bh4 {[%emt 0:02:09]} Nh5 {[%emt 0:04:23]} 32. Nf4 {[%emt 0:02:17]} Nxf4 {[%emt 0:07:15]} 33. Qxf4 {[%emt 0:00:05]} Ng6 {[%emt 0:00:17]} 34. Bf6+ {[%emt 0:00:18]} Kh7 {[%emt 0:00:02]} 35. Qd2 $36 {[%emt 0:01:12][%mdl 2048] White has the initiative.} Ne5 {[%emt 0:02:37]} 36. Rg1 $1 {[%emt 0:02:45]} Rxg1+ {[%emt 0:01:48]} 37. Kxg1 {[%emt 0:00:04][%cal Oc3b5]} Bxa4 {[%emt 0:01:49]} (37... Be7 $11 {remains equal.} 38. Bxe7 Qxe7) 38. Nxa4 $16 {[%emt 0:01:02]} Rxa4 {[%emt 0:00:28]} 39. c5 $1 {[%emt 0:02:04][%cal Bc4c5,Bc5c6,Bc6c7][%mdl 32]} Bg7 {[%emt 0:01:22]} (39... Kg6 $14) 40. Bxg7 {[%emt 0:00:58]} Kxg7 {[%emt 0:00:09]} 41. Qxd6 {[%emt 0:31:25]} Ra1+ {[%emt 0:06:56]} 42. Kg2 {[%emt 0:00:00]} Ng6 {[%emt 0:00:21] [#]} 43. c6 $1 {[%emt 0:00:00]} Qb6 {[%emt 0:04:15] [#] ( -> ...Rg1+)} 44. Bd1 $2 {[%emt 0:00:00]} ({Only move:} 44. Qc5 $1 $16 {[%cal Rc5b6]} Nf4+ 45. Kf2) 44... Qe3 $11 {[%emt 0:05:34][%mdl 1024] Black has compensation.} 45. c7 $1 {[%emt 0:00:00][%cal Oh2h4] aiming for h4!} Nf4+ {[%emt 0:01:41]} 46. Kg3 $2 {[%emt 0:00:00][%mdl 8192]} (46. Qxf4 $11 Qxf4 47. c8=Q Rxd1 48. Qc3+ Kh7 49. Kh3) 46... Qg1+ {[%emt 0:00:33] Weighted Error Value: White=0.32/Black=0.18 (very precise)} 0-1